[Event "35th Roquetas Festival 2024"]
[Site "Roquetas de Mar"]
[Date "2024.01.05"]
[Round "6.18"]
[White "Martinez Piqueras, Carlos"]
[Black "Huerga Leache, Mikel"]
[Result "1/2-1/2"]
[ECO "C07"]
[WhiteElo "2126"]
[BlackElo "2424"]
[Annotator "RC"]
[PlyCount "109"]
[EventDate "2024.01.02"]
[EventType "swiss"]
[EventCountry "ESP"]
[SourceTitle "playchess.com"]
[Source "ChessBase"]
[SourceQuality "1"]
[TimeControl "5400+30"]

1. e4 {[%emt 0:03:05]} e6 {[%emt 0:00:16]} 2. d4 {[%emt 0:00:19]} d5 {[%emt 0:00:05]} 3. Nd2 {[%emt 0:00:21]} c5 {[%emt 0:00:04]} 4. exd5 {[%emt 0:00:24]} Qxd5 {[%emt 0:00:18]} 5. Ngf3 {[%emt 0:00:21]} cxd4 {[%emt 0:00:23]} 6. Bc4 {[%emt 0:00:45]} Qd7 {[%emt 0:00:19]} 7. O-O {[%emt 0:00:33]} Nc6 {[%emt 0:00:08]} 8. Nb3 {[%emt 0:01:38]} a6 {[%emt 0:00:12]} 9. Nbxd4 {[%emt 0:00:39]} Nxd4 {[%emt 0:00:07]} 10. Nxd4 {[%emt 0:00:04]} Qc7 {[%emt 0:00:16]} 11. Bd3 {[%emt 0:05:27]} Bd6 {[%emt 0:16:59]} 12. h3 {[%emt 0:04:56]} Nf6 {[%emt 0:01:44]} 13. Re1 {[%emt 0:01:26]} Bd7 {[%emt 0:02:32]} 14. Qf3 {[%emt 0:14:31]} O-O-O {[%emt 0:02:45]} 15. Be3 {[%emt 0:15:26]} Bc5 {[%emt 0:23:06]} 16. b4 {[%emt 0:16:19]} Bxd4 {[%emt 0:03:56]} 17. Bxd4 {[%emt 0:00:09]} Bc6 {[%emt 0:01:02]} 18. Qe3 {[%emt 0:00:40]} Nd5 {[%emt 0:01:44]} 19. Qe5 {[%emt 0:10:57]} Qxe5 {[%emt 0:02:05]} 20. Bxe5 {[%emt 0:00:09]} Nxb4 21. Be4 {[%emt 0:00:24]} f6 {[%emt 0:10:40]} 22. Bc3 {[%emt 0:02:38]} Bxe4 {[%emt 0:01:08]} 23. Bxb4 {[%emt 0:00:31]} Rd4 {[%emt 0:00:40]} 24. c3 {[%emt 0:01:47]} Rc4 {[%emt 0:00:09]} 25. a4 {[%emt 0:01:35]} Rd8 {[%emt 0:06:50]} 26. Rad1 {[%emt 0:05:26]} Bd5 {[%emt 0:11:30]} 27. a5 {[%emt 0:03:52]} Kd7 {[%emt 0:05:36]} 28. Rd4 {[%emt 0:04:32]} Rdc8 {[%emt 0:02:06]} 29. Red1 {[%emt 0:00:29]} g6 {[%emt 0:02:44]} 30. f4 {[%emt 0:01:39]} Rxd4 {[%emt 0:02:11]} 31. Rxd4 {[%emt 0:00:08]} Rc4 {[%emt 0:00:49]} 32. Kf2 {[%emt 0:03:09]} Kc6 {[%emt 0:02:41]} 33. Rxc4+ {[%emt 0:01:47]} Bxc4 {[%emt 0:00:01]} 34. g3 {[%emt 0:00:30]} b6 {[%emt 0:00:20]} 35. axb6 {[%emt 0:00:22]} Kxb6 {[%emt 0:00:27]} 36. Ke3 {[%emt 0:00:05]} Bf1 {[%emt 0:01:36]} 37. h4 {[%emt 0:01:10]} Kb5 {[%emt 0:00:10]} 38. Kd4 {[%emt 0:00:34]} Ka4 {[%emt 0:00:01]} 39. Be7 {[%emt 0:00:13]} a5 {[%emt 0:00:44]} 40. c4 {[%emt 0:00:49]} e5+ {[%emt 0:01:10]} 41. fxe5 {[%emt 0:00:13]} fxe5+ {[%emt 0:00:00]} 42. Kd5 {[%emt 0:00:57]} e4 {[%emt 0:00:10]} 43. Kxe4 {[%emt 0:00:01]} Bxc4 {[%emt 0:00:06]} 44. Kd4 {[%emt 0:00:13]} Kb3 {[%emt 0:00:03]} 45. Ke3 {[%emt 0:00:30]} a4 {[%emt 0:00:58]} 46. Kd2 {[%emt 0:00:42]} a3 {[%emt 0:00:50]} 47. Kc1 {[%emt 0:00:18]} Bd3 {[%emt 0:00:25]} 48. Bf6 {[%emt 0:00:11]} Kc4 {[%emt 0:00:40]} 49. Be7 {[%emt 0:00:14]} Kb3 {[%emt 0:00:24]} 50. Bf6 {[%emt 0:00:05]} Bf5 {[%emt 0:00:25]} 51. Bg7 {[%emt 0:00:06]} a2 {[%emt 0:01:29]} 52. Bf6 {[%emt 0:00:17]} Be6 {[%emt 0:00:10]} 53. Bg7 {[%emt 0:00:05]} Kc4 {[%emt 0:00:03]} 54. Kb2 {[%emt 0:00:12]} Kd3 {[%emt 0:00:15]} 55. Be5 {[%emt 0:00:14]} 1/2-1/2

[Event "35th Roquetas Festival 2024"]
[Site "Roquetas de Mar"]
[Date "2024.01.05"]
[Round "6.19"]
[White "Fernandez, Maria Florencia"]
[Black "Luque Saiz, Andres"]
[Result "0-1"]
[ECO "A41"]
[WhiteElo "2074"]
[BlackElo "2328"]
[Annotator "RC"]
[PlyCount "100"]
[EventDate "2024.01.02"]
[EventType "swiss"]
[EventCountry "ESP"]
[SourceTitle "playchess.com"]
[Source "ChessBase"]
[SourceQuality "1"]
[TimeControl "5400+30"]

1. d4 {[%emt 0:02:28]} d6 {[%emt 0:02:18]} 2. c4 {[%emt 0:00:35]} e5 {[%emt 0:00:24]} 3. Nc3 {[%emt 0:01:16]} exd4 {[%emt 0:00:32]} 4. Qxd4 {[%emt 0:00:07]} Nc6 {[%emt 0:00:25]} 5. Qd2 {[%emt 0:04:05]} Nf6 {[%emt 0:01:29]} 6. Nf3 {[%emt 0:00:05]} Be6 {[%emt 0:04:32]} 7. e4 {[%emt 0:05:26]} Ne5 {[%emt 0:04:47]} 8. b3 {[%emt 0:03:44]} Nxf3+ {[%emt 0:06:19]} 9. gxf3 {[%emt 0:00:04]} g6 {[%emt 0:02:06]} 10. Bb2 {[%emt 0:02:59]} Bg7 {[%emt 0:01:09]} 11. Be2 {[%emt 0:06:33]} Qe7 {[%emt 0:11:45]} 12. Rg1 {[%emt 0:09:24]} c6 {[%emt 0:06:18]} 13. O-O-O {[%emt 0:07:27]} O-O-O {[%emt 0:00:49]} 14. Kb1 {[%emt 0:02:06]} Ne8 {[%emt 0:07:43]} 15. Nd5 {[%emt 0:15:24]} cxd5 {[%emt 0:08:10]} 16. cxd5 {[%emt 0:03:19]} Kb8 {[%emt 0:04:46]} 17. dxe6 {[%emt 0:03:45]} fxe6 {[%emt 0:00:15]} 18. Bxg7 {[%emt 0:04:04]} Nxg7 {[%emt 0:00:54]} 19. Qb4 {[%emt 0:01:35]} Qc7 {[%emt 0:16:04]} 20. Rd2 {[%emt 0:06:03]} Qc5 {[%emt 0:05:01]} 21. Qxc5 {[%emt 0:08:07]} dxc5 {[%emt 0:00:06]} 22. Rgd1 {[%emt 0:06:46]} Rxd2 {[%emt 0:04:36]} 23. Rxd2 {[%emt 0:00:03]} Kc7 {[%emt 0:00:05]} 24. Rc2 {[%emt 0:01:21]} Kc6 {[%emt 0:00:59]} 25. Rd2 {[%emt 0:00:38]} Rf8 {[%emt 0:05:03]} 26. Kb2 Nh5 {[%emt 0:01:35]} 27. a4 {[%emt 0:01:52]} Kc7 {[%emt 0:00:58]} 28. Kc3 {[%emt 0:00:55]} Nf4 {[%emt 0:02:05]} 29. Bb5 {[%emt 0:03:36]} a6 {[%emt 0:00:39]} 30. Bf1 {[%emt 0:00:58]} g5 {[%emt 0:00:35]} 31. b4 {[%emt 0:00:14]} Ng6 {[%emt 0:02:41]} 32. Be2 {[%emt 0:00:15]} cxb4+ {[%emt 0:00:26]} 33. Kxb4 {[%emt 0:00:03]} Ne5 {[%emt 0:00:23]} 34. Rc2+ {[%emt 0:00:34]} Kd6 {[%emt 0:00:32]} 35. Rd2+ {[%emt 0:00:57]} Kc7 {[%emt 0:00:08]} 36. Rc2+ {[%emt 0:00:03]} Nc6+ {[%emt 0:00:30]} 37. Kb3 {[%emt 0:01:34]} Rd8 {[%emt 0:00:40]} 38. Kb2 {[%emt 0:00:31]} Rd4 {[%emt 0:00:35]} 39. Ka3 {[%emt 0:00:22]} Kd6 {[%emt 0:00:40]} 40. Rb2 {[%emt 0:00:12]} Kc7 {[%emt 0:00:32]} 41. Rc2 {[%emt 0:00:04]} Rd7 {[%emt 0:00:40]} 42. Bc4 {[%emt 0:00:24]} Re7 {[%emt 0:00:27]} 43. e5 {[%emt 0:00:54]} Kb6 {[%emt 0:00:25]} 44. Re2 {[%emt 0:00:40]} Nd4 {[%emt 0:00:31]} 45. Re4 {[%emt 0:00:54]} Kc5 {[%emt 0:00:39]} 46. Be2 {[%emt 0:00:33]} Rf7 {[%emt 0:00:08]} 47. Bd1 {[%emt 0:00:28]} Nxf3 {[%emt 0:00:29]} 48. Rg4 {[%emt 0:00:27]} h6 {[%emt 0:00:24]} 49. Rg3 {[%emt 0:00:34]} Nxe5 {[%emt 0:00:31]} 50. Bb3 {[%emt 0:00:10]} Nc4+ {[%emt 0:00:36]} 0-1

[Event "35th Roquetas Festival 2024"]
[Site "Roquetas de Mar"]
[Date "2024.01.05"]
[Round "6.20"]
[White "Garrido Diaz, Jose Antonio"]
[Black "Castro Quijano, Eduardo"]
[Result "1-0"]
[ECO "C47"]
[WhiteElo "2291"]
[BlackElo "2103"]
[Annotator "RC"]
[PlyCount "107"]
[EventDate "2024.01.02"]
[EventType "swiss"]
[EventCountry "ESP"]
[SourceTitle "playchess.com"]
[Source "ChessBase"]
[SourceQuality "1"]
[TimeControl "5400+30"]

1. e4 {[%emt 0:00:02]} e5 {[%emt 0:06:11]} 2. Nf3 {[%emt 0:02:41]} Nf6 3. Nc3 {[%emt 0:00:08]} Nc6 {[%emt 0:00:09]} 4. g3 {[%emt 0:01:49]} d5 {[%emt 0:01:08]} 5. exd5 {[%emt 0:00:19]} Nxd5 {[%emt 0:04:47]} 6. Bg2 Nxc3 7. bxc3 {[%emt 0:00:49]} Bd6 {[%emt 0:00:36]} 8. O-O {[%emt 0:00:55]} O-O {[%emt 0:00:08]} 9. d3 {[%emt 0:02:49]} h6 {[%emt 0:00:59]} 10. Rb1 {[%emt 0:02:27]} Rb8 {[%emt 0:01:43]} 11. Nd2 {[%emt 0:04:00]} Bd7 {[%emt 0:01:03]} 12. Nc4 {[%emt 0:04:21]} f5 {[%emt 0:04:40]} 13. Bd5+ {[%emt 0:17:56]} Kh8 {[%emt 0:00:17]} 14. Nxd6 {[%emt 0:00:10]} cxd6 {[%emt 0:00:06]} 15. Qh5 Qf6 {[%emt 0:01:10]} 16. f4 {[%emt 0:11:12]} Be6 {[%emt 0:04:07]} 17. fxe5 {[%emt 0:09:47]} Nxe5 {[%emt 0:12:20]} 18. Bg5 {[%emt 0:02:41]} Qf7 {[%emt 0:00:14]} 19. Qxf7 {[%emt 0:00:10]} Bxf7 {[%emt 0:00:04]} 20. Bxf7 {[%emt 0:01:51]} Rxf7 {[%emt 0:00:09]} 21. Be3 {[%emt 0:02:44]} b6 {[%emt 0:00:10]} 22. Rb5 {[%emt 0:01:17]} Re8 {[%emt 0:05:25]} 23. Rd5 {[%emt 0:12:38]} Ng4 {[%emt 0:02:37]} 24. Bd4 {[%emt 0:00:11]} Re2 {[%emt 0:00:24]} 25. h3 {[%emt 0:05:10]} Ne3 {[%emt 0:00:08]} 26. Bxe3 {[%emt 0:00:18]} Rxe3 {[%emt 0:00:04]} 27. Kg2 {[%emt 0:00:28]} f4 {[%emt 0:01:30]} 28. Rxf4 {[%emt 0:04:09]} Rxf4 {[%emt 0:00:08]} 29. gxf4 {[%emt 0:00:01]} Re2+ {[%emt 0:00:12]} 30. Kf3 {[%emt 0:00:04]} Rxc2 {[%emt 0:00:06]} 31. c4 {[%emt 0:00:08]} Rxa2 {[%emt 0:00:13]} 32. Rxd6 {[%emt 0:00:06]} Rh2 {[%emt 0:00:46]} 33. Rd8+ {[%emt 0:00:34]} Kh7 {[%emt 0:00:07]} 34. Ra8 {[%emt 0:00:54]} Rxh3+ {[%emt 0:00:16]} 35. Ke4 {[%emt 0:00:04]} Rh1 {[%emt 0:01:20]} 36. Rxa7 {[%emt 0:00:05]} h5 {[%emt 0:01:13]} 37. Rb7 {[%emt 0:03:43]} Rb1 {[%emt 0:00:13]} 38. Kf5 {[%emt 0:01:26]} Rd1 {[%emt 0:02:22]} 39. Ke4 {[%emt 0:01:58]} Rb1 {[%emt 0:00:34]} 40. f5 {[%emt 0:04:39]} Kg8 {[%emt 0:03:36]} 41. Kf4 {[%emt 0:03:04]} Rd1 {[%emt 0:02:22]} 42. Rd7 {[%emt 0:00:04]} Rg1 {[%emt 0:02:38]} 43. Rb7 {[%emt 0:01:56]} Rd1 {[%emt 0:01:56]} 44. Rd7 {[%emt 0:00:02]} h4 {[%emt 0:03:43]} 45. Kg4 {[%emt 0:00:27]} Rh1 {[%emt 0:00:04]} 46. Rd6 {[%emt 0:00:49]} h3 {[%emt 0:00:07]} 47. Kg3 {[%emt 0:00:03]} Kf7 {[%emt 0:00:27]} 48. Rxb6 {[%emt 0:01:10]} Rf1 {[%emt 0:03:02]} 49. Rb5 {[%emt 0:01:29]} Kf6 {[%emt 0:00:59]} 50. Rd5 {[%emt 0:00:20]} Rh1 {[%emt 0:00:16]} 51. c5 {[%emt 0:00:26]} Kg5 {[%emt 0:01:51]} 52. d4 {[%emt 0:00:41]} Kf6 53. c6 {[%emt 0:00:52]} h2 {[%emt 0:00:51]} 54. Rc5 {[%emt 0:00:26]} 1-0

[Event "35th Roquetas Festival 2024"]
[Site "Roquetas de Mar"]
[Date "2024.01.05"]
[Round "6.21"]
[White "Gomez Arce, Alejandro"]
[Black "Iglesias Ferreira, Andres"]
[Result "1-0"]
[ECO "A05"]
[WhiteElo "2074"]
[BlackElo "2278"]
[Annotator "RC"]
[PlyCount "104"]
[EventDate "2024.01.02"]
[EventType "swiss"]
[EventCountry "ESP"]
[SourceTitle "playchess.com"]
[Source "ChessBase"]
[SourceQuality "1"]
[TimeControl "5400+30"]

1. Nf3 {[%emt 0:00:02]} Nf6 {[%emt 0:01:47]} 2. g3 {[%emt 0:00:18]} d5 {[%emt 0:07:10]} 3. Bg2 {[%emt 0:00:26]} e6 {[%emt 0:01:35]} 4. O-O {[%emt 0:01:46]} Bd6 {[%emt 0:01:34]} 5. d3 {[%emt 0:11:53]} O-O {[%emt 0:03:19]} 6. Nbd2 {[%emt 0:02:15]} c5 {[%emt 0:03:59]} 7. e4 {[%emt 0:00:18]} Nc6 {[%emt 0:00:17]} 8. Re1 {[%emt 0:00:31]} Qc7 {[%emt 0:06:27]} 9. Qe2 {[%emt 0:04:06]} dxe4 {[%emt 0:02:46]} 10. dxe4 {[%emt 0:03:10]} e5 {[%emt 0:00:25]} 11. c3 {[%emt 0:01:17]} b6 {[%emt 0:00:45]} 12. Nf1 {[%emt 0:06:19]} h6 {[%emt 0:09:18]} 13. Nh4 {[%emt 0:04:08]} Bg4 {[%emt 0:06:58]} 14. Bf3 {[%emt 0:05:41]} Be6 {[%emt 0:00:40]} 15. Ne3 {[%emt 0:00:43]} Ne7 {[%emt 0:02:07]} 16. Ng4 {[%emt 0:11:06]} Nxg4 {[%emt 0:01:33]} 17. Bxg4 {[%emt 0:00:05]} Qd7 {[%emt 0:04:13]} 18. Bxe6 {[%emt 0:00:45]} Qxe6 19. Be3 {[%emt 0:02:21]} Rad8 {[%emt 0:06:16]} 20. a4 {[%emt 0:00:49]} Bc7 {[%emt 0:06:30]} 21. Qa6 {[%emt 0:04:05]} Qc6 {[%emt 0:08:09]} 22. Qc4 {[%emt 0:00:53]} Rd7 {[%emt 0:05:39]} 23. a5 {[%emt 0:14:42]} Rfd8 {[%emt 0:00:49]} 24. axb6 {[%emt 0:00:51]} axb6 {[%emt 0:00:08]} 25. Nf3 {[%emt 0:07:36]} Nc8 {[%emt 0:02:19]} 26. Kg2 Qb7 {[%emt 0:07:43]} 27. Qa6 {[%emt 0:05:35]} Qc6 {[%emt 0:01:54]} 28. Qc4 {[%emt 0:00:22]} Rd3 {[%emt 0:03:15]} 29. b4 {[%emt 0:04:17]} b5 {[%emt 0:03:44]} 30. Qxc5 {[%emt 0:00:06]} Qb7 {[%emt 0:00:59]} 31. c4 {[%emt 0:02:44]} bxc4 {[%emt 0:03:08]} 32. Qxc4 {[%emt 0:00:01]} R3d7 33. Bc5 {[%emt 0:01:39]} Nd6 {[%emt 0:00:51]} 34. Qa6 {[%emt 0:00:54]} Qxa6 {[%emt 0:00:30]} 35. Rxa6 {[%emt 0:00:01]} Nb5 {[%emt 0:00:23]} 36. Rea1 {[%emt 0:00:44]} Nc3 {[%emt 0:00:15]} 37. Re1 {[%emt 0:02:26]} f6 {[%emt 0:00:10]} 38. Ra7 {[%emt 0:00:26]} Nb5 {[%emt 0:00:20]} 39. Rb7 {[%emt 0:00:22]} Nd6 {[%emt 0:01:13]} 40. Bxd6 {[%emt 0:00:18]} Bxd6 {[%emt 0:00:05]} 41. Rxd7 {[%emt 0:00:08]} Rxd7 {[%emt 0:00:01]} 42. Rd1 {[%emt 0:01:15]} Kf7 {[%emt 0:00:10]} 43. Nh4 {[%emt 0:00:57]} Ke6 {[%emt 0:00:29]} 44. Nf5 {[%emt 0:01:22]} g6 {[%emt 0:01:11]} 45. Nxd6 {[%emt 0:01:20]} Rxd6 {[%emt 0:00:01]} 46. Rxd6+ {[%emt 0:01:21]} Kxd6 {[%emt 0:00:02]} 47. h4 {[%emt 0:00:11]} h5 {[%emt 0:02:03]} 48. f4 {[%emt 0:00:54]} Kc6 {[%emt 0:00:43]} 49. g4 {[%emt 0:00:32]} hxg4 {[%emt 0:00:29]} 50. fxe5 {[%emt 0:00:23]} f5 {[%emt 0:00:32]} 51. exf5 {[%emt 0:00:12]} gxf5 {[%emt 0:00:05]} 52. h5 {[%emt 0:00:44]} Kd5 1-0

[Event "35th Roquetas Festival 2024"]
[Site "Roquetas de Mar"]
[Date "2024.01.05"]
[Round "6.22"]
[White "Castillo Rodriguez, Angel Luis"]
[Black "Fiorito, Fabian"]
[Result "1/2-1/2"]
[ECO "A05"]
[WhiteElo "2055"]
[BlackElo "2274"]
[Annotator "RC"]
[PlyCount "65"]
[EventDate "2024.01.02"]
[EventType "swiss"]
[EventCountry "ESP"]
[SourceTitle "playchess.com"]
[Source "ChessBase"]
[SourceQuality "1"]
[TimeControl "5400+30"]

1. Nf3 {[%emt 0:00:03]} Nf6 {[%emt 0:00:36]} 2. g3 {[%emt 0:00:10]} g6 {[%emt 0:03:38]} 3. b3 {[%emt 0:00:21]} Bg7 {[%emt 0:00:12]} 4. Bb2 {[%emt 0:00:06]} d6 {[%emt 0:01:51]} 5. d4 {[%emt 0:00:27]} b5 {[%emt 0:06:45]} 6. Bg2 {[%emt 0:02:58]} Bb7 {[%emt 0:00:15]} 7. O-O {[%emt 0:00:31]} O-O {[%emt 0:00:05]} 8. c4 {[%emt 0:09:56]} bxc4 {[%emt 0:03:29]} 9. bxc4 {[%emt 0:00:10]} Nbd7 {[%emt 0:00:03]} 10. Nbd2 {[%emt 0:07:06]} Rb8 {[%emt 0:01:22]} 11. Qc2 {[%emt 0:03:23]} e5 {[%emt 0:07:23]} 12. e3 {[%emt 0:09:25]} exd4 {[%emt 0:02:42]} 13. exd4 {[%emt 0:00:45]} Re8 {[%emt 0:00:49]} 14. Rfe1 {[%emt 0:00:29]} Rxe1+ {[%emt 0:00:34]} 15. Rxe1 {[%emt 0:00:38]} Nf8 {[%emt 0:03:39]} 16. Nb3 {[%emt 0:04:56]} Ba8 {[%emt 0:07:34]} 17. d5 {[%emt 0:07:03]} c6 {[%emt 0:02:49]} 18. dxc6 {[%emt 0:00:52]} Bxc6 {[%emt 0:00:56]} 19. Nfd4 {[%emt 0:00:50]} Bxg2 {[%emt 0:00:10]} 20. Kxg2 {[%emt 0:00:02]} Qd7 {[%emt 0:00:49]} 21. Rd1 {[%emt 0:08:02]} Rc8 {[%emt 0:01:09]} 22. Na5 {[%emt 0:10:59]} Ne6 {[%emt 0:02:11]} 23. Nxe6 {[%emt 0:05:24]} Qxe6 {[%emt 0:00:08]} 24. Qd3 {[%emt 0:04:24]} Ne8 {[%emt 0:08:35]} 25. Bxg7 {[%emt 0:00:44]} Kxg7 {[%emt 0:00:53]} 26. Qd4+ {[%emt 0:00:16]} Kg8 {[%emt 0:00:12]} 27. Rd3 {[%emt 0:07:41]} a6 {[%emt 0:03:57]} 28. Re3 {[%emt 0:00:37]} Qd7 {[%emt 0:00:31]} 29. Nb3 {[%emt 0:03:05]} Ng7 {[%emt 0:00:39]} 30. Qd5 {[%emt 0:05:48]} Nf5 {[%emt 0:00:33]} 31. Rd3 {[%emt 0:01:14]} Qa4 {[%emt 0:02:12]} 32. c5 {[%emt 0:00:55]} dxc5 {[%emt 0:05:45]} 33. Kf3 1/2-1/2

[Event "35th Roquetas Festival 2024"]
[Site "Roquetas de Mar"]
[Date "2024.01.05"]
[Round "6.23"]
[White "Garijo Perez, Hugo"]
[Black "Alba Fernandez, Nicolas"]
[Result "0-1"]
[ECO "B40"]
[WhiteElo "2270"]
[BlackElo "2123"]
[Annotator "RC"]
[PlyCount "55"]
[EventDate "2024.01.02"]
[EventType "swiss"]
[EventCountry "ESP"]
[SourceTitle "playchess.com"]
[Source "ChessBase"]
[SourceQuality "1"]
[TimeControl "5400+30"]

1. e4 c5 {[%emt 0:00:28]} 2. Nf3 {[%emt 0:00:07]} e6 {[%emt 0:00:05]} 3. c4 {[%emt 0:00:11]} Nc6 {[%emt 0:01:06]} 4. Nc3 {[%emt 0:00:05]} Nd4 {[%emt 0:01:39]} 5. Nxd4 {[%emt 0:00:52]} cxd4 {[%emt 0:00:52]} 6. Ne2 {[%emt 0:00:02]} e5 {[%emt 0:00:41]} 7. d3 {[%emt 0:00:03]} Bb4+ {[%emt 0:00:25]} 8. Bd2 {[%emt 0:00:06]} Bxd2+ {[%emt 0:00:06]} 9. Qxd2 {[%emt 0:00:05]} d6 {[%emt 0:00:12]} 10. Ng3 {[%emt 0:01:16]} h5 11. h4 {[%emt 0:01:18]} g6 {[%emt 0:01:26]} 12. Be2 {[%emt 0:01:10]} Nf6 {[%emt 0:00:12]} 13. O-O-O {[%emt 0:00:51]} b5 {[%emt 0:06:00]} 14. f4 {[%emt 0:01:53]} bxc4 {[%emt 0:09:26]} 15. dxc4 {[%emt 0:06:10]} Bg4 {[%emt 0:00:19]} 16. fxe5 {[%emt 0:06:25]} dxe5 {[%emt 0:01:59]} 17. Qg5 {[%emt 0:10:52]} Qe7 {[%emt 0:03:04]} 18. Rdf1 {[%emt 0:06:36]} Bxe2 {[%emt 0:02:55]} 19. Qxf6 {[%emt 0:12:14]} Qxf6 {[%emt 0:00:21]} 20. Rxf6 {[%emt 0:00:02]} Bxc4 {[%emt 0:00:30]} 21. Rc6 {[%emt 0:00:30]} Bxa2 {[%emt 0:06:47]} 22. Rc7 {[%emt 0:03:03]} O-O {[%emt 0:00:34]} 23. Kd2 {[%emt 0:04:47]} Rfb8 {[%emt 0:00:46]} 24. Rc2 {[%emt 0:00:08]} Rc8 {[%emt 0:01:29]} 25. Rhc1 {[%emt 0:00:46]} Be6 {[%emt 0:00:05]} 26. Rc5 {[%emt 0:03:42]} Rxc5 {[%emt 0:00:54]} 27. Rxc5 {[%emt 0:00:02]} Rb8 {[%emt 0:00:04]} 28. Kc2 {[%emt 0:01:09]} 0-1

[Event "35th Roquetas Festival 2024"]
[Site "Roquetas de Mar"]
[Date "2024.01.05"]
[Round "6.24"]
[White "Hernandez Mullor, Francisco"]
[Black "Revaliente Montoya, Ciro"]
[Result "0-1"]
[ECO "D29"]
[WhiteElo "1995"]
[BlackElo "2263"]
[Annotator "RC"]
[PlyCount "42"]
[EventDate "2024.01.02"]
[EventType "swiss"]
[EventCountry "ESP"]
[SourceTitle "playchess.com"]
[Source "ChessBase"]
[SourceQuality "1"]
[TimeControl "5400+30"]

1. d4 {[%emt 0:00:04]} d5 {[%emt 0:09:04]} 2. c4 {[%emt 0:00:13]} e6 {[%emt 0:01:02]} 3. Nf3 {[%emt 0:00:59]} Nf6 {[%emt 0:01:37]} 4. Nc3 {[%emt 0:00:32]} dxc4 {[%emt 0:00:38]} 5. e3 {[%emt 0:00:52]} a6 {[%emt 0:00:55]} 6. Bxc4 {[%emt 0:00:31]} b5 {[%emt 0:00:12]} 7. Bb3 {[%emt 0:07:02]} Bb7 {[%emt 0:03:39]} 8. O-O {[%emt 0:00:16]} Nbd7 {[%emt 0:05:11]} 9. Qe2 {[%emt 0:02:38]} c5 {[%emt 0:06:08]} 10. Rd1 {[%emt 0:05:01]} Bd6 {[%emt 0:02:52]} 11. e4 {[%emt 0:27:13]} cxd4 {[%emt 0:03:45]} 12. Nxd4 {[%emt 0:00:09]} Qb8 {[%emt 0:04:43]} 13. h3 {[%emt 0:10:05]} b4 {[%emt 0:06:40]} 14. Na4 {[%emt 0:00:51]} Nxe4 {[%emt 0:02:39]} 15. Nxe6 {[%emt 0:10:20]} fxe6 {[%emt 0:02:07]} 16. Bxe6 {[%emt 0:06:17]} Ndf6 {[%emt 0:04:04]} 17. Nb6 {[%emt 0:04:34]} Bh2+ {[%emt 0:02:16]} 18. Kh1 {[%emt 0:03:28]} Qe5 {[%emt 0:00:31]} 19. Be3 {[%emt 0:02:15]} Qxe6 {[%emt 0:04:44]} 20. Nxa8 {[%emt 0:00:36]} Bb8 {[%emt 0:03:06]} 21. Nb6 {[%emt 0:01:43]} Nc3 {[%emt 0:01:07]} 0-1

[Event "35th Roquetas Festival 2024"]
[Site "Roquetas de Mar"]
[Date "2024.01.05"]
[Round "6.25"]
[White "Vingris, Mikelis"]
[Black "Maldonado Mena, German"]
[Result "1-0"]
[ECO "B88"]
[WhiteElo "2248"]
[BlackElo "2074"]
[Annotator "ChessBase"]
[PlyCount "67"]
[EventDate "2024.01.02"]
[EventType "swiss"]
[EventCountry "ESP"]
[SourceTitle "playchess.com"]
[Source "ChessBase"]
[SourceQuality "1"]
[TimeControl "5400+30"]

1. e4 c5 {[%emt 0:01:48]} 2. Nf3 {[%emt 0:00:08]} Nc6 {[%emt 0:00:03]} 3. d4 {[%emt 0:00:04]} cxd4 {[%emt 0:00:04]} 4. Nxd4 {[%emt 0:00:04]} Nf6 {[%emt 0:00:07]} 5. Nc3 {[%emt 0:00:05]} d6 {[%emt 0:00:07]} 6. Bc4 {[%emt 0:01:10]} e6 {[%emt 0:00:11]} 7. Bb3 {[%emt 0:03:09]} a6 {[%emt 0:00:19]} 8. O-O {[%emt 0:00:30]} Be7 {[%emt 0:00:06]} 9. Be3 {[%emt 0:01:43]} O-O {[%emt 0:00:09]} 10. f4 {[%emt 0:10:31]} Na5 {[%emt 0:02:59]} 11. e5 {[%emt 0:17:13]} Ne8 {[%emt 0:01:53]} 12. Qf3 {[%emt 0:18:46]} Nxb3 {[%emt 0:00:54]} 13. axb3 {[%emt 0:02:20]} f6 {[%emt 0:05:31]} 14. exf6 {[%emt 0:03:00]} Nxf6 {[%emt 0:00:07]} 15. Rad1 {[%emt 0:02:33]} Kh8 {[%emt 0:03:35]} 16. f5 {[%emt 0:07:33]} e5 {[%emt 0:00:39]} 17. Ne6 {[%emt 0:04:05]} Bxe6 {[%emt 0:00:06]} 18. fxe6 {[%emt 0:00:03]} Qc8 {[%emt 0:00:07]} 19. Qh3 {[%emt 0:02:53]} Qc6 {[%emt 0:01:36]} 20. Bg5 {[%emt 0:01:06]} Rae8 {[%emt 0:00:06]} 21. Bxf6 {[%emt 0:01:55]} Rxf6 {[%emt 0:01:59]} 22. Rxf6 {[%emt 0:02:20]} Bxf6 {[%emt 0:00:06]} 23. Kh1 {[%emt 0:08:17]} e4 {[%emt 0:09:16]} 24. Qf5 {[%emt 0:01:09]} e3 {[%emt 0:00:16]} 25. Nd5 {[%emt 0:02:48]} Qb5 {[%emt 0:07:54]} 26. Re1 {[%emt 0:02:51]} Be5 {[%emt 0:12:40]} 27. c4 {[%emt 0:01:09]} Qa5 {[%emt 0:00:05]} 28. Rf1 {[%emt 0:01:29]} Rg8 {[%emt 0:02:19]} 29. Qf7 {[%emt 0:01:29]} h6 {[%emt 0:02:35]} 30. b4 {[%emt 0:03:13]} Qa4 {[%emt 0:00:50]} 31. Nxe3 {[%emt 0:01:28]} Qe8 {[%emt 0:00:31]} 32. Nd5 {[%emt 0:00:31]} Bxb2 {[%emt 0:06:37]} 33. Nc7 {[%emt 0:00:30]} Qc8 {[%emt 0:01:28]} 34. e7 {[%emt 0:00:17]} 1-0

[Event "35th Roquetas Festival 2024"]
[Site "Roquetas de Mar"]
[Date "2024.01.05"]
[Round "6.26"]
[White "Moral Garcia, Serafin"]
[Black "Roquero Redondo, Miguel"]
[Result "1-0"]
[ECO "A14"]
[WhiteElo "2246"]
[BlackElo "1988"]
[Annotator "RC"]
[PlyCount "59"]
[EventDate "2024.01.02"]
[EventType "swiss"]
[EventCountry "ESP"]
[SourceTitle "playchess.com"]
[Source "ChessBase"]
[SourceQuality "1"]
[TimeControl "5400+30"]

1. c4 {[%emt 0:00:01]} e6 {[%emt 0:00:08]} 2. g3 {[%emt 0:00:17]} Nf6 {[%emt 0:00:08]} 3. Bg2 {[%emt 0:00:22]} d5 {[%emt 0:00:07]} 4. Nf3 {[%emt 0:00:33]} Be7 {[%emt 0:00:07]} 5. O-O {[%emt 0:00:44]} O-O {[%emt 0:00:08]} 6. b3 {[%emt 0:00:29]} b6 {[%emt 0:08:50]} 7. Bb2 {[%emt 0:01:08]} Bb7 {[%emt 0:00:19]} 8. cxd5 {[%emt 0:03:01]} exd5 {[%emt 0:01:44]} 9. d4 {[%emt 0:00:39]} Nbd7 {[%emt 0:01:07]} 10. Nc3 {[%emt 0:02:10]} c5 {[%emt 0:08:19]} 11. dxc5 {[%emt 0:06:04]} bxc5 {[%emt 0:00:24]} 12. Ne1 {[%emt 0:01:56]} Nb6 {[%emt 0:04:17]} 13. Nd3 {[%emt 0:01:21]} Qc8 {[%emt 0:08:58]} 14. Rc1 {[%emt 0:05:15]} d4 {[%emt 0:07:38]} 15. Bxb7 {[%emt 0:03:10]} Qxb7 {[%emt 0:00:09]} 16. Nb1 {[%emt 0:00:52]} Rac8 {[%emt 0:00:25]} 17. Nd2 {[%emt 0:00:53]} Rfd8 {[%emt 0:06:04]} 18. Re1 {[%emt 0:09:41]} h5 {[%emt 0:08:00]} 19. Rc2 {[%emt 0:10:06]} h4 {[%emt 0:04:06]} 20. e4 {[%emt 0:02:21]} dxe3 {[%emt 0:01:52]} 21. Rxe3 {[%emt 0:00:54]} Nbd5 {[%emt 0:08:44]} 22. Re1 {[%emt 0:07:52]} Nb6 {[%emt 0:04:41]} 23. Ne5 {[%emt 0:03:16]} c4 {[%emt 0:05:32]} 24. bxc4 {[%emt 0:05:34]} Bb4 {[%emt 0:03:29]} 25. Ng4 {[%emt 0:09:04]} Ne4 {[%emt 0:05:49]} 26. Qf3 {[%emt 0:04:20]} Rxd2 {[%emt 0:00:08]} 27. Rxd2 {[%emt 0:00:51]} Bxd2 {[%emt 0:02:03]} 28. Rxe4 {[%emt 0:00:43]} Qd7 {[%emt 0:01:48]} 29. Nf6+ {[%emt 0:01:57]} gxf6 {[%emt 0:01:34]} 30. Qxf6 {[%emt 0:00:11]} 1-0